bitfinex/quotes_SOLUSD_20260306
["timestamp","ask_amount","ask_price","bid_price","bid_amount"]
[1772808084672,1.70390991,84.649,84.595,1.72977187]
[1772808085468,1.70390991,84.619,84.57,1.72977187]
[1772808085668,1.70390991,84.619,84.527,4.82477569]
[1772808085669,1.70390991,84.619,84.572,1.72977187]
[1772808085863,1.70390991,84.607,84.561,11.82578257]
[1772808086171,1.70390991,84.599,84.561,11.82578257]
[1772808087262,1.70390991,84.599,84.547,1.72977187]
[1772808087263,10.94044759,84.59,84.548,11.82760088]
[1772808087578,1.70390991,84.589,84.548,41.3966031]
[1772808087869,1.70390991,84.607,84.552,1.72977187]
[1772808088048,1.70390991,84.599,84.553,41.39415514]
[1772808088551,1.70390991,84.599,84.553,11.82690147]
[1772808088755,1.70390991,84.579,84.539,11.82886005]
[1772808088960,41.36822446,84.606,84.514,1.72977187]
[1772808088961,1.70390991,84.569,84.514,1.72977187]
[1772808089271,1.70390991,84.549,84.463,1.72977187]
[1772808089448,1.70390991,84.549,84.464,1.18393635]
[1772808089650,1.70390991,84.549,84.47,1.72977187]
[1772808089950,14.20270706,84.6,84.462,41.43875351]
[1772808089951,1.70390991,84.539,84.472,1.72977187]
[1772808090475,13.53151079,84.548,84.475,1.72977187]
[1772808090677,1.70390991,84.547,84.478,0.28432314]
[1772808090879,1.70390991,84.547,84.488,1.72977187]
[1772808091057,11.82760088,84.548,84.476,1.72977187]
[1772808091058,1.70390991,84.539,84.476,1.72977187]
[1772808091260,1.70390991,84.529,84.472,1.72977187]
[1772808091861,1.70390991,84.529,84.475,1.77450576]
[1772808092060,1.43979137,84.552,84.478,1.49018262]
[1772808092363,1.43979137,84.539,84.48,1.49018262]
[1772808092667,1.43979137,84.539,84.48,1.63234419]
[1772808092875,41.39170746,84.558,84.48,1.49018262]
[1772808092876,1.43979137,84.529,84.48,1.49018262]
[1772808093563,1.43979137,84.529,84.476,41.43188597]
[1772808093765,1.43979137,84.519,84.476,11.8376817]
[1772808093967,11.83179914,84.518,84.465,29.59790234]
[1772808094277,1.43979137,84.517,84.468,3.69383402]
[1772808095062,9.37793137,84.57,84.468,3.69383402]
[1772808095063,1.43979137,84.532,84.469,1.49018262]
[1772808095266,1.43979137,84.532,84.469,1.77450576]
[1772808095267,1.43979137,84.531,84.469,1.77450576]
[1772808095578,1.43979137,84.529,84.469,1.77450576]
[1772808096257,1.43979137,84.529,84.474,1.49018262]
[1772808096574,1.43979137,84.543,84.474,1.77450576]
[1772808096779,1.43979137,84.556,84.476,1.49018262]
[1772808096978,1.43979137,84.556,84.476,1.77450576]
[1772808097274,1.43979137,84.556,84.478,1.77450576]
[1772808097465,1.43979137,84.57,84.487,1.49018262]
[1772808097857,1.43979137,84.609,84.497,3.69383402]
[1772808098066,1.43979137,84.608,84.52,1.49018262]
[1772808098260,1.43979137,84.608,84.536,5.18401664]
[1772808098469,1.43979137,84.608,84.54,1.49018262]
[1772808098778,1.43979137,84.628,84.544,1.63234419]
[1772808098979,1.43979137,84.619,84.548,1.49018262]
[1772808099179,10.94044759,84.62,84.548,1.49018262]
[1772808099180,1.43979137,84.609,84.551,1.49018262]
[1772808099481,1.43979137,84.609,84.554,1.49018262]
[1772808100378,1.43979137,84.607,84.558,3.69383402]
[1772808100587,1.43979137,84.607,84.56,1.49018262]
[1772808101282,1.43979137,84.62,84.56,1.49018262]
[1772808101862,0.28432314,84.656,84.559,0.28432314]
[1772808101863,9.37793137,84.692,84.561,1.49018262]
[1772808102178,9.37793137,84.692,84.559,0.28432314]
[1772808102179,10.94044759,84.66,84.564,1.49018262]
[1772808102380,11.81069813,84.669,84.572,3.69383402]
[1772808102589,10.95837729,84.66,84.578,1.77450576]
[1772808102759,10.95837729,84.68,84.581,3.69383402]
[1772808102959,10.95837729,84.68,84.58,1.77450576]
[1772808102960,10.95837729,84.69,84.588,1.77450576]
[1772808103261,11.80651483,84.699,84.606,1.49018262]
[1772808103879,1.43979137,84.689,84.606,1.49018262]
[1772808104072,1.43979137,84.679,84.606,1.49018262]
[1772808104283,1.43979137,84.679,84.611,1.49018262]
[1772808104462,1.43979137,84.679,84.611,1.77450576]
[1772808104663,1.43979137,84.677,84.611,1.77450576]
[1772808104989,1.43979137,84.669,84.611,1.49018262]
[1772808105376,1.43979137,84.659,84.611,1.49018262]
[1772808106270,1.43979137,84.687,84.616,1.49018262]
[1772808106468,1.43979137,84.687,84.616,1.77450576]
[1772808107184,0.1,84.7,84.616,1.77450576]
[1772808107185,1.43979137,84.699,84.616,1.77450576]
[1772808107483,0.1,84.7,84.626,1.49018262]
[1772808107885,0.1,84.7,84.626,1.63234419]
[1772808108077,0.1,84.7,84.63,1.49018262]
[1772808108382,1.43979137,84.738,84.646,1.49018262]
[1772808108587,1e-08,84.721,84.659,1.49018262]
[1772808108975,11.80358829,84.72,84.659,1.49018262]
[1772808109287,1.43979137,84.709,84.647,1.49018262]
[1772808109988,1.43979137,84.709,84.607,4.82477569]
[1772808109989,1.43979137,84.689,84.637,41.35307253]
[1772808110366,1.43979137,84.701,84.643,1.49018262]
[1772808110566,0.28432314,84.736,84.643,1.49018262]
[1772808110567,1.43979137,84.719,84.643,1.77450576]
[1772808110787,1.43979137,84.718,84.643,1.77450576]
[1772808110995,11.80372761,84.719,84.643,1.77450576]
[1772808110996,1.43979137,84.709,84.643,1.77450576]
[1772808111879,1.43979137,84.709,84.643,1.49018262]
[1772808112282,1.43979138,84.721,84.645,1.49018262]
[1772808112477,1.43979138,84.721,84.65,1.49018262]
[1772808112799,1.43979137,84.719,84.654,1.49018262]
[1772808112976,1.43979137,84.719,84.656,1.49018262]
[1772808113165,1.43979137,84.719,84.658,1.49018262]
[1772808114371,1.43979137,84.717,84.663,1.49018262]
[1772808114573,1.43979137,84.717,84.663,1.63234419]
[1772808115090,1.43979137,84.717,84.665,1.28909452]
[1772808115291,1e-08,84.721,84.665,1.28909452]
[1772808115586,1.25894735,84.753,84.669,3.69383402]
[1772808115788,58.96324907,84.799,84.686,1.28909452]
[1772808115789,29.48517358,84.789,84.686,1.28909452]
[1772808116192,10.95837729,84.78,84.686,1.28909452]
[1772808116377,10.95837729,84.78,84.69,3.69383402]
[1772808116378,41.28380848,84.779,84.69,3.69383402]
[1772808116580,10.95837729,84.77,84.691,1.57341766]
[1772808116894,41.28380848,84.779,84.691,1.57341766]
[1772808117888,1.05944168,84.749,84.691,1.57341766]
[1772808118097,1.05944168,84.749,84.687,100.36959626]
[1772808118098,1.05944168,84.739,84.687,41.32865728]
[1772808118394,0.28432314,84.759,84.632,1.18158616]
[1772808118395,1.05944168,84.749,84.689,41.32768127]
[1772808118569,1.05944168,84.749,84.69,1.28909452]
[1772808119271,11.79709614,84.767,84.693,1.28909452]
[1772808119489,11.79709614,84.767,84.693,1.57341766]
[1772808119698,41.28970529,84.767,84.693,1.57341766]
[1772808119993,1.02926151,84.766,84.693,1.57341766]
[1772808120290,1.02926151,84.749,84.693,1.28909452]
[1772808120490,1.02926151,84.727,84.668,1.28909452]
[1772808121283,11.80112908,84.738,84.668,1.28909452]
[1772808121686,12.80081857,84.738,84.668,1.28909452]
[1772808121993,0.98734322,84.753,84.676,1.21364882]
[1772808122198,11.79913158,84.752,84.676,1.49797196]
[1772808122495,11.79760036,84.763,84.682,1.21364882]
[1772808122707,0.98734322,84.779,84.694,1.21364882]
[1772808122891,0.97292284,84.769,84.694,1.21364882]
[1772808123286,0.97292284,84.749,84.694,1.21364882]
[1772808123475,0.97292284,84.761,84.694,1.21364882]
[1772808123674,0.97292284,84.749,84.694,1.21364882]
[1772808124091,0.97292284,84.749,84.597,47.28260179]
[1772808124092,10.95837729,84.71,84.617,1.18179562]
[1772808124289,0.28432314,84.729,84.562,47.30218174]
[1772808124290,0.95864783,84.699,84.645,11.8140469]
[1772808124509,0.95864783,84.677,84.626,11.81669935]
[1772808124706,0.95864783,84.669,84.626,13.03034817]
[1772808124995,11.80944283,84.678,84.627,1.21364882]
[1772808125910,11.80803798,84.689,84.63,1.21364882]
[1772808126081,0.93052739,84.688,84.63,1.21364882]
[1772808126405,0.93052739,84.679,84.63,1.21364882]
[1772808126712,0.93052739,84.679,84.608,59.09551936]
[1772808126713,0.93052739,84.659,84.608,41.36724659]
[1772808126877,0.93052739,84.659,84.609,1.21364882]
[1772808127074,0.28432314,84.677,84.609,1.49797196]
[1772808127279,0.91667878,84.669,84.612,1.21364882]
[1772808127479,0.28432314,84.677,84.608,41.36724659]
[1772808127480,0.91667878,84.659,84.608,42.58089541]
[1772808127697,0.91667878,84.659,84.609,1.49797196]
[1772808128001,0.91667878,84.659,84.564,4.82477569]
[1772808128002,0.90296914,84.629,84.57,1.21364882]
[1772808128183,10.95837729,84.62,84.57,1.21364882]
[1772808128385,0.90296914,84.619,84.57,1.21364882]
[1772808128604,0.90296914,84.619,84.506,1.18334792]
[1772808128605,0.90296914,84.631,84.575,1.21364882]
[1772808128776,11.81488439,84.639,84.575,1.21364882]
[1772808128982,0.88939691,84.638,84.575,1.49797196]
[1772808129182,0.88939691,84.638,84.575,1.21364882]
[1772808129385,0.88939691,84.629,84.575,1.21364882]
[1772808129596,0.88939691,84.629,84.575,1.49797196]
[1772808129799,0.88939691,84.629,84.575,1.21364882]
[1772808130106,0.88939691,84.629,84.575,1.49797196]
[1772808130601,0.87596057,84.627,84.578,1.21364882]
[1772808130799,11.81642009,84.628,84.576,11.8236852]
[1772808130800,0.87596057,84.609,84.576,11.8236852]
[1772808131181,10.95837729,84.62,84.576,41.38289821]
[1772808131439,10.95837729,84.62,84.556,3.69383402]
[1772808131440,0.86265859,84.599,84.563,11.82550287]
[1772808131586,0.86265859,84.599,84.55,11.82732111]
[1772808131911,10.95837729,84.62,84.551,1.21364882]
[1772808132101,0.84948948,84.609,84.553,3.69383402]
[1772808132291,0.84948948,84.627,84.555,1.21364882]
[1772808132686,12.66437387,84.639,84.56,1.49797196]
[1772808132904,0.84948948,84.629,84.56,1.49797196]
[1772808133096,0.83645175,84.638,84.56,1.49797196]
[1772808133407,0.83645175,84.629,84.56,1.49797196]
[1772808134087,0.82354394,84.619,84.56,1.49797196]
[1772808134287,0.82354394,84.609,84.556,41.39268649]
[1772808134489,10.95837729,84.6,84.556,41.39268649]
[1772808134704,0.82354394,84.607,84.556,29.56620464]
[1772808135087,0.8107646,84.589,84.548,11.82760088]
[1772808135282,0.8107646,84.589,84.548,41.3966031]
[1772808135502,0.8107646,84.589,84.548,11.82760088]
[1772808136211,0.8107646,84.589,84.524,11.83095925]
[1772808136212,11.75648958,84.57,84.524,11.83095925]
[1772808136505,0.79811229,84.559,84.51,11.83291918]
[1772808136711,10.95837729,84.56,84.498,59.17298418]
[1772808136712,0.79811229,84.557,84.501,1.21364882]
[1772808136895,0.7855856,84.549,84.504,1.21364882]
[1772808137092,0.7855856,84.549,84.5,41.42011833]
[1772808137093,0.7855856,84.539,84.5,11.83431952]
[1772808137290,10.95837729,84.52,84.481,11.83698109]
[1772808137605,41.39170746,84.558,84.481,11.83698109]
[1772808137606,0.7855856,84.554,84.482,1.21364882]
[1772808137806,0.77318312,84.539,84.482,1.21364882]
[1772808138604,0.77318312,84.528,84.483,11.83670087]
[1772808138784,10.95837729,84.52,84.483,11.83670087]
[1772808138988,0.77318312,84.528,84.483,11.83670087]
[1772808139186,0.77318312,84.528,84.484,1.21364882]
[1772808139794,0.76090349,84.509,84.48,0.6390073]
[1772808140107,22.78852643,84.53,84.482,1.21364882]
[1772808140311,23.07123336,84.53,84.482,1.21364882]
[1772808140698,11.09489747,84.53,84.484,1.21364882]
[1772808140900,10.95837729,84.55,84.484,1.49797196]
[1772808141501,0.27124177,84.519,84.481,11.83698109]
[1772808141699,0.27124177,84.519,84.48,0.6390073]
[1772808141700,0.14216157,84.539,84.48,0.36776553]
[1772808142008,0.14216157,84.539,84.47,0.2]
[1772808142009,10.95837729,84.5,84.47,1e-08]
[1772808142217,10.95837729,84.51,84.47,1e-08]
[1772808142510,11.82791581,84.546,84.475,1.35581039]
[1772808142692,29.56865249,84.549,84.48,1.35581039]
[1772808142896,11.82606227,84.559,84.48,1.49797196]
[1772808143299,10.95837729,84.55,84.48,1.49797196]
[1772808143634,41.39121796,84.559,84.48,1.49797196]
[1772808143797,10.95837729,84.55,84.48,1.49797196]
[1772808143996,0.28432314,84.558,84.48,1.49797196]
[1772808144194,0.28432314,84.558,84.48,1.21364882]
[1772808144422,10.95837729,84.55,84.48,1.49797196]
[1772808144627,0.28432314,84.558,84.48,1.49797196]
[1772808144825,0.28432314,84.556,84.485,1.21364882]
[1772808145110,11.82634199,84.557,84.485,1.49797196]
[1772808145290,10.95837729,84.55,84.485,1.49797196]
[1772808145494,10.95837729,84.53,84.481,41.42943383]
[1772808145706,10.95837729,84.52,84.481,11.83698109]
[1772808146210,10.95837729,84.54,84.482,1.21364882]
[1772808146517,10.95837729,84.53,84.482,1.21364882]
[1772808146815,11.83165915,84.519,84.483,11.83670087]
[1772808146996,0.28432314,84.544,84.484,1.49797196]
[1772808147191,11.82606227,84.559,84.487,1.49797196]
[1772808147396,10.95837729,84.55,84.487,1.49797196]
[1772808147712,41.38143037,84.579,84.487,1.49797196]
[1772808147918,10.95837729,84.58,84.487,1.49797196]
[1772808148119,107.7340625,84.684,84.496,1.21364882]
[1772808148120,10.95837729,84.59,84.496,1.21364882]
[1772808148495,59.09241612,84.614,84.484,6.00843176]
[1772808148496,59.09241612,84.614,84.505,1.49797196]
[1772808148713,10.95837729,84.61,84.515,1.21364882]
[1772808149012,10.95837729,84.6,84.52,1.49797196]
[1772808149408,11.81907362,84.609,84.52,1.49797196]
[1772808150007,10.95837729,84.59,84.52,1.49797196]
[1772808150626,0.28432314,84.608,84.52,1.49797196]
[1772808150627,10.95837729,84.6,84.52,1.49797196]
[1772808151012,59.0828903,84.627,84.52,1.49797196]
[1772808151013,10.95837729,84.62,84.525,1.21364882]
[1772808151202,11.81530318,84.636,84.535,1.21364882]
[1772808151513,6.16986374,84.647,84.549,9.94387608]
[1772808151713,10.95837729,84.66,84.555,1.14094323]
[1772808152015,10.95837729,84.64,84.555,1.14094323]
[1772808152510,100.35537608,84.699,84.555,1.14094323]
[1772808152511,10.95837729,84.65,84.555,1.14094323]
[1772808152713,8.51860971,84.683,84.555,1.14094323]
[1772808152917,100.35537608,84.699,84.555,1.14094323]
[1772808152918,10.95837729,84.63,84.555,1.14094323]
[1772808153114,10.95837729,84.6,84.56,1.14094323]
[1772808153507,10.95837729,84.61,84.56,1.14094323]
[1772808154316,10.95837729,84.62,84.56,1.14094323]
[1772808154516,10.95837729,84.6,84.56,1.14094323]
[1772808154718,0.14216157,84.619,84.551,11.82709853]
[1772808154719,10.95837729,84.59,84.551,11.82709853]
[1772808155015,10.95837729,84.59,84.473,1.18381021]
[1772808155016,10.95837729,84.59,84.538,1.14094323]
[1772808155315,10.95837729,84.58,84.538,1.14094323]
[1772808155521,41.37360363,84.595,84.538,1.14094323]
[1772808155522,10.95837729,84.59,84.538,1.14094323]
[1772808155721,0.28432314,84.594,84.538,1.14094323]
[1772808155919,10.95837729,84.57,84.511,1.14094323]
[1772808156216,41.37360363,84.595,84.508,11.83319922]
[1772808156217,41.37360363,84.595,84.513,1.14094323]
[1772808156422,10.95837729,84.57,84.513,1.14094323]
[1772808156620,10.95837729,84.59,84.513,1.14094323]
[1772808157022,11.82186809,84.589,84.518,1.14094323]
[1772808157225,10.95837729,84.58,84.518,1.42526637]
[1772808157427,10.95837729,84.62,84.52,1.14094323]
[1772808157722,11.81069813,84.669,84.524,1.14094323]
[1772808157723,0.28432314,84.629,84.524,1.14094323]
[1772808157906,10.95837729,84.62,84.524,1.14094323]
[1772808158823,10.95837729,84.63,84.536,1.14094323]
[1772808159025,10.95837729,84.63,84.519,1.18316591]
[1772808159026,10.95837729,84.6,84.541,1.14094323]
[1772808159208,10.95837729,84.58,84.537,11.8291399]
[1772808159403,10.95837729,84.59,84.538,1.14094323]
[1772808160205,10.95837729,84.57,84.53,11.83002261]
[1772808160504,10.95837729,84.55,84.472,1.14094323]
[1772808160709,10.95837729,84.56,84.475,1.14094323]
[1772808161108,10.95837729,84.57,84.479,1.42526637]
[1772808161317,10.95837729,84.57,84.479,1.14094323]
[1772808161514,10.95837729,84.56,84.479,1.14094323]
[1772808161712,10.95837729,84.56,84.479,1.2831048]
[1772808162115,100.43838399,84.629,84.479,1.42526637]
[1772808162423,10.95837729,84.57,84.479,1.42526637]
[1772808162617,10.95837729,84.55,84.479,1.2831048]
[1772808163010,10.95837729,84.55,84.479,1.42526637]
[1772808163214,10.95837729,84.54,84.481,1.14094323]
[1772808163506,41.39611348,84.549,84.484,1.14094323]
[1772808164227,11.82606227,84.559,84.484,1.14094323]
[1772808164602,10.9896125,84.55,84.484,1.14094323]
[1772808164803,11.82606227,84.559,84.484,1.14094323]
[1772808165027,10.9896125,84.55,84.484,1.14094323]
[1772808165226,11.82746099,84.549,84.486,1.14094323]
[1772808165620,11.82620213,84.558,84.489,1.42526637]
[1772808165924,10.9896125,84.55,84.489,1.42526637]
[1772808166510,10.9896125,84.54,84.489,1.14094323]
[1772808167212,11.82886005,84.539,84.49,41.4250207]
[1772808167412,11.82886005,84.539,84.491,1.14094323]
[1772808168332,10.9896125,84.53,84.49,11.8357202]
[1772808168511,41.40101018,84.539,84.49,41.4250207]
[1772808168718,10.9896125,84.52,84.472,1.14094323]
[1772808169322,10.9896125,84.52,84.344,29.595956]
[1772808169323,10.9896125,84.51,84.473,11.83810211]
[1772808169632,41.41080703,84.519,84.473,11.83810211]
[1772808169633,11.83165915,84.519,84.474,1.14094323]
[1772808169834,11.83039939,84.528,84.474,1.14094323]
[1772808170332,41.40639787,84.528,84.474,1.14094323]
[1772808170636,11.83039939,84.528,84.474,1.14094323]
[1772808171027,10.9896125,84.52,84.474,1.14094323]
[1772808171224,11.83165915,84.519,84.476,1.14094323]
[1772808171917,41.41080703,84.519,84.476,1.14094323]
[1772808172117,0.28432314,84.539,84.476,1.14094323]
[1772808172322,10.9896125,84.54,84.476,1.14094323]
[1772808172625,41.3848555,84.572,84.479,1.14094323]
[1772808172937,10.9896125,84.56,84.479,1.42526637]
[1772808173437,11.82606227,84.559,84.484,1.14094323]
[1772808173950,10.9896125,84.55,84.484,1.14094323]
[1772808174112,41.39121796,84.559,84.484,1.14094323]
[1772808174721,11.82466388,84.569,84.484,1.42526637]
[1772808175125,11.82466388,84.569,84.485,1.42526637]
[1772808175323,29.56114703,84.571,84.487,1.14094323]
[1772808175529,10.9896125,84.56,84.49,1.42526637]
[1772808175834,10.9896125,84.56,84.486,41.42698197]
[1772808175835,10.9896125,84.53,84.486,41.42698197]
[1772808176216,5.10909883,84.564,84.487,1.14094323]
[1772808176534,10.9896125,84.53,84.487,1.14094323]
[1772808177314,10.9896125,84.55,84.487,1.14094323]
[1772808177627,10.9896125,84.55,84.489,1.14094323]
[1772808177835,0.28432314,84.559,84.489,1.14094323]
[1772808178026,10.9896125,84.56,84.489,1.42526637]
[1772808178421,41.3882812,84.565,84.489,1.42526637]
[1772808178636,11.8252232,84.565,84.489,1.42526637]
[1772808178838,11.8252232,84.565,84.493,1.14094323]
[1772808179541,11.82466388,84.569,84.498,1.42526637]
[1772808179737,10.9896125,84.58,84.498,1.42526637]
[1772808179738,10.9896125,84.59,84.498,1.42526637]
[1772808179915,0.28432314,84.588,84.498,1.42526637]
[1772808180118,0.28432314,84.579,84.498,1.42526637]
[1772808180326,10.9896125,84.57,84.498,1.42526637]
[1772808180544,0.28432314,84.579,84.498,1.42526637]
[1772808181142,0.28432314,84.589,84.498,1.42526637]
[1772808181348,10.9896125,84.6,84.5,1.14094323]
[1772808181544,29.54977955,84.603,84.507,1.42526637]
[1772808181724,11.81907362,84.609,84.509,1.14094323]
[1772808181923,10.9896125,84.6,84.509,1.42526637]
[1772808182224,0.28432314,84.579,84.509,1.14094323]
[1772808182442,10.9896125,84.57,84.509,1.14094323]
[1772808182947,3.69383402,84.61,84.51,1.18329191]
[1772808182948,41.36675767,84.609,84.51,1.18329191]
[1772808183132,11.81907362,84.609,84.516,1.42526637]
[1772808183336,11.81725792,84.622,84.516,1.42526637]
[1772808183534,11.81348864,84.649,84.534,4.82477569]
[1772808183740,29.53581512,84.643,84.538,1.42526637]
[1772808184054,10.9896125,84.62,84.538,1.42526637]
[1772808184354,10.9896125,84.61,84.538,1.42526637]
[1772808184733,10.9896125,84.6,84.538,1.42526637]
[1772808184932,10.9896125,84.62,84.538,1.42526637]
[1772808185124,10.9896125,84.63,84.538,1.42526637]
[1772808185325,11.81348864,84.649,84.546,1.14094323]
[1772808185646,0.1,84.65,84.555,1.14094323]
[1772808185829,0.1,84.65,84.552,4.82477569]
[1772808185830,0.1,84.65,84.567,1.14094323]
[1772808186460,0.1,84.65,84.557,4.82477569]
[1772808186461,11.80651483,84.699,84.584,4.82477569]
[1772808186664,41.32280191,84.699,84.588,1.14094323]
[1772808186946,10.9896125,84.67,84.588,1.14094323]
[1772808187147,10.9896125,84.66,84.588,1.14094323]
[1772808187444,41.33256178,84.679,84.589,41.37653831]
[1772808187631,41.33256178,84.679,84.593,1.42526637]
[1772808187828,11.80716674,84.695,84.598,1.14094323]
[1772808188030,10.9896125,84.7,84.598,1.42526637]
[1772808188625,11.80512106,84.709,84.603,1.14094323]
[1772808188829,10.9896125,84.68,84.603,1.42526637]
[1772808189151,41.31792371,84.709,84.603,1.42526637]
[1772808189356,10.9896125,84.68,84.603,1.42526637]
[1772808189651,10.9896125,84.67,84.608,1.14094323]
[1772808189838,10.9896125,84.64,84.597,1.14094323]
[1772808190042,10.9896125,84.64,84.565,1.14094323]
[1772808190345,10.9896125,84.63,84.565,1.14094323]
[1772808190545,10.9896125,84.64,84.565,1.14094323]
[1772808190751,5.10909883,84.671,84.568,1.2831048]
[1772808190929,0.28432314,84.671,84.568,1.42526637]
[1772808191131,41.33256178,84.679,84.57,1.14094323]
[1772808191485,11.80930336,84.679,84.575,1.2831048]
[1772808191655,11.80930336,84.679,84.574,4.82477569]
[1772808191656,11.80790893,84.689,84.596,1.14094323]
[1772808191837,10.9896125,84.71,84.598,1.42526637]
[1772808192037,10.9896125,84.7,84.598,1.42526637]
[1772808192231,11.80386694,84.718,84.609,4.82477569]
[1772808192439,11.80386694,84.718,84.594,6.00689262]
[1772808192440,10.9896125,84.71,84.616,1.42526637]
[1772808193172,10.9896125,84.69,84.616,1.42526637]
[1772808193334,11.80386694,84.718,84.618,1.14094323]
[1772808193535,11.80386694,84.718,84.63,1.14094323]
[1772808193734,11.80386694,84.718,84.63,1.42526637]
[1772808193962,29.5009772,84.743,84.635,1.14094323]
[1772808194134,58.97556352,84.781,84.655,3.69383402]
[1772808194340,10.9896125,84.75,84.656,1.42526637]
[1772808194659,6.16140556,84.78,84.656,1.42526637]
[1772808194660,10.9896125,84.73,84.656,1.42526637]
[1772808194841,3.69383402,84.763,84.656,1.42526637]
[1772808195042,10.9896125,84.74,84.656,1.42526637]
[1772808195264,10.9896125,84.75,84.656,1.42526637]
[1772808195439,10.9896125,84.74,84.658,1.14094323]
[1772808195643,10.9896125,84.74,84.657,1.25431906]
[1772808195644,11.80094171,84.739,84.663,1.42526637]
[1772808196065,10.9896125,84.74,84.663,1.42526637]
[1772808196244,0.28432314,84.739,84.664,1.14094323]
[1772808196561,0.28432314,84.739,84.664,1.42526637]
[1772808197257,10.9896125,84.71,84.664,1.14094323]
[1772808197454,10.9896125,84.74,84.664,1.14094323]
[1772808197658,41.58761913,84.739,84.666,1.42526637]
[1772808197855,11.80094171,84.739,84.666,1.42526637]
[1772808198158,11.79676532,84.769,84.674,1.14094323]
[1772808198338,41.28867863,84.769,84.674,1.42526637]
[1772808198539,10.9896125,84.8,84.684,8.51860971]
[1772808198745,10.9896125,84.77,84.689,1.14094323]
[1772808199155,10.9896125,84.79,84.689,1.14094323]
[1772808199361,10.9896125,84.8,84.699,4.82477569]
[1772808199661,41.26920491,84.809,84.71,1.42526637]
[1772808199848,10.9896125,84.78,84.71,1.42526637]
[1772808200045,10.9896125,84.77,84.71,1.42526637]
[1772808200352,0.14216157,84.759,84.71,1.14094323]
[1772808200550,0.28432314,84.749,84.696,11.80693303]
[1772808200747,10.9896125,84.73,84.696,11.80693303]
[1772808200952,10.9896125,84.73,84.686,11.80832723]
[1772808201153,10.9896125,84.72,84.681,11.80893954]
[1772808201356,10.9896125,84.74,84.682,1.14094323]
[1772808201549,0.28432314,84.749,84.685,1.42526637]
[1772808201859,11.79904514,84.753,84.69,1.42526637]
[1772808202249,10.9896125,84.75,84.69,1.14094323]
[1772808202458,0.28432314,84.749,84.69,1.14094323]
[1772808202647,0.28432314,84.739,84.69,1.14094323]
[1772808202966,41.29652605,84.753,84.686,11.80832723]
[1772808202967,10.9896125,84.73,84.686,11.80832723]
[1772808203140,0.28432314,84.729,84.686,11.80832723]
[1772808203344,0.28432314,84.729,84.681,1.14094323]
[1772808203661,10.9896125,84.76,84.689,1.14094323]
[1772808203839,10.9896125,84.74,84.689,1.14094323]
[1772808204046,3.69383402,84.774,84.689,1.14094323]
[1772808204047,10.9896125,84.76,84.689,1.14094323]
[1772808204244,10.9896125,84.75,84.689,1.14094323]
[1772808204456,0.14216157,84.749,84.689,1.14094323]
[1772808204657,10.9896125,84.78,84.689,1.42526637]
[1772808204864,10.9896125,84.8,84.701,1.14094323]
[1772808205163,10.9896125,84.8,84.706,1.14094323]
[1772808205554,11.7912014,84.809,84.716,1.2831048]
[1772808205760,11.0896125,84.81,84.721,1.2831048]
[1772808205962,10.9896125,84.8,84.721,1.2831048]
[1772808206356,11.0896125,84.81,84.721,1.2831048]
[1772808206559,0.28432314,84.799,84.721,1.42526637]
[1772808207056,10.9896125,84.77,84.721,1.14094323]
[1772808207246,0.28432314,84.779,84.721,1.14094323]
[1772808207446,0.28432314,84.769,84.721,1.14094323]
[1772808207666,10.9896125,84.75,84.712,11.80458529]
[1772808207869,41.29354993,84.759,84.712,11.80458529]
[1772808208167,11.7912014,84.809,84.716,1.14094323]
[1772808208356,11.7912014,84.809,84.718,1.42526637]
[1772808208549,11.7912014,84.809,84.72,1.42526637]
[1772808208749,10.9896125,84.8,84.72,1.42526637]
[1772808209156,0.28432314,84.808,84.72,1.42526637]
[1772808209346,10.9896125,84.8,84.72,1.42526637]
[1772808209554,0.28432314,84.808,84.72,1.42526637]
[1772808209868,11.79398271,84.789,84.725,1.14094323]
[1772808210373,0.28432314,84.788,84.725,1.14094323]
[1772808210552,10.9896125,84.77,84.725,1.14094323]
[1772808211346,10.9896125,84.76,84.715,11.80423672]
[1772808211755,41.29354993,84.759,84.715,11.80423672]
[1772808211950,41.29354993,84.759,84.684,59.04283258]
[1772808211951,10.9896125,84.75,84.7,1.14094323]
[1772808212161,10.9896125,84.74,84.7,1.14094323]
[1772808212470,10.9896125,84.75,84.7,1.14094323]
[1772808212675,41.29354993,84.759,84.7,1.14094323]
[1772808212854,10.9896125,84.75,84.7,1.14094323]
[1772808213052,0.28432314,84.758,84.685,41.32963334]
[1772808213053,10.9896125,84.74,84.687,1.14094323]
[1772808213694,10.9896125,84.77,84.675,11.80986123]
[1772808213695,10.9896125,84.72,84.675,11.80986123]
[1772808214179,41.30817075,84.729,84.676,1.14094323]
[1772808214355,11.8023345,84.729,84.676,1.14094323]
[1772808214554,3.69383402,84.805,84.679,1.14094323]
[1772808214770,10.9896125,84.75,84.679,1.42526637]
[1772808215270,0.28432314,84.739,84.68,1.14094323]
[1772808215460,88.43609606,84.807,84.68,1.14094323]
[1772808215770,15.6875151,84.84,84.694,1.14094323]
[1772808215771,41.25898855,84.83,84.694,1.14094323]
[1772808216071,10.9896125,84.8,84.705,1.14094323]
[1772808216282,0.28432314,84.789,84.705,1.14094323]
[1772808216593,10.9896125,84.78,84.705,1.14094323]